lending/lending_fUSD_20241115
["ID","MTS","AMOUNT","RATE_DAILY","PERIOD"]
[342305395,1731699045958,-500.0,9.784e-05,2]
[342305396,1731699045967,-673.99,9.784e-05,2]
[342305397,1731699045976,-500.0,9.784e-05,2]
[342305398,1731699045985,-500.0,9.784e-05,2]
[342305399,1731699045994,-837.81,9.784e-05,2]
[342305400,1731699046003,-500.0,9.784e-05,2]
[342305401,1731699046013,-500.0,9.784e-05,2]
[342305402,1731699046022,-500.0,9.784e-05,2]
[342305403,1731699046031,-500.0,9.784e-05,2]
[342305404,1731699046040,-500.0,9.784e-05,2]
[342305405,1731699046049,-500.0,9.784e-05,2]
[342305406,1731699046058,-500.0,9.784e-05,2]
[342305407,1731699046068,-500.0,9.784e-05,2]
[342305408,1731699046077,-500.0,9.784e-05,2]
[342305409,1731699046086,-500.0,9.784e-05,2]
[342305410,1731699046095,-500.0,9.784e-05,2]
[342305411,1731699046105,-500.0,9.784e-05,2]
[342305412,1731699046114,-500.0,9.784e-05,2]
[342305413,1731699046124,-500.0,9.784e-05,2]
[342305414,1731699046133,-500.0,9.784e-05,2]
[342305415,1731699046142,-500.0,9.784e-05,2]
[342305416,1731699046154,-500.0,9.784e-05,2]
[342305417,1731699046163,-563.53,9.784e-05,2]
[342305418,1731699046172,-500.0,9.784e-05,2]
[342305419,1731699046181,-500.0,9.784e-05,2]
[342305420,1731699046190,-500.0,9.784e-05,2]
[342305421,1731699046199,-543.57,9.784e-05,2]
[342305422,1731699046209,-790.25,9.784e-05,2]
[342305423,1731699046218,-500.0,9.784e-05,2]
[342305424,1731699046226,-500.0,9.784e-05,2]
[342305425,1731699046235,-500.0,9.784e-05,2]
[342305426,1731699046244,-500.0,9.784e-05,2]
[342305427,1731699046253,-500.0,9.784e-05,2]
[342305428,1731699046263,-500.0,9.784e-05,2]
[342305429,1731699046272,-500.0,9.784e-05,2]
[342305430,1731699046281,-500.0,9.784e-05,2]
[342305431,1731699046291,-500.0,9.784e-05,2]
[342305432,1731699046300,-500.0,9.784e-05,2]
[342305433,1731699046309,-500.0,9.784e-05,2]
[342305434,1731699046318,-500.0,9.784e-05,2]
[342305435,1731699046328,-500.0,9.784e-05,2]
[342305436,1731699046337,-500.0,9.784e-05,2]
[342305437,1731699046346,-512.72,9.784e-05,2]
[342305438,1731699046356,-500.0,9.784e-05,2]
[342305439,1731699046364,-525.27305602,9.784e-05,2]
[342305440,1731699046374,-500.0,9.784e-05,2]
[342305441,1731699046383,-500.0,9.784e-05,2]
[342305442,1731699046391,-1361.5,9.784e-05,2]
[342305443,1731699046411,-500.0,9.784e-05,2]
[342305444,1731699046421,-500.0,9.784e-05,2]
[342305445,1731699046431,-500.0,9.784e-05,2]
[342305446,1731699046441,-500.0,9.784e-05,2]
[342305447,1731699046451,-500.0,9.784e-05,2]
[342305448,1731699046461,-500.0,9.784e-05,2]
[342305449,1731699046470,-500.0,9.784e-05,2]
[342305450,1731699046481,-500.0,9.784e-05,2]
[342305451,1731699046491,-500.0,9.784e-05,2]
[342305452,1731699046500,-500.0,9.784e-05,2]
[342305453,1731699046509,-500.0,9.784e-05,2]
[342305454,1731699046519,-500.0,9.784e-05,2]
[342305455,1731699046528,-867.32,9.784e-05,2]
[342305456,1731699046538,-500.0,9.784e-05,2]
[342305457,1731699046547,-500.0,9.784e-05,2]
[342305458,1731699046556,-500.0,9.784e-05,2]
[342305459,1731699046565,-500.0,9.784e-05,2]
[342305460,1731699046575,-500.0,9.784e-05,2]
[342305461,1731699046585,-500.0,9.784e-05,2]
[342305462,1731699046595,-731.55,9.784e-05,2]
[342305463,1731699046604,-500.0,9.784e-05,2]
[342305464,1731699046614,-500.0,9.784e-05,2]
[342305465,1731699046623,-533.13,9.784e-05,2]
[342305466,1731699046632,-500.0,9.784e-05,2]
[342305467,1731699046641,-1024.8,9.784e-05,2]
[342305468,1731699046655,-500.0,9.784e-05,2]
[342305469,1731699046664,-500.0,9.784e-05,2]
[342305470,1731699046674,-500.0,9.784e-05,2]
[342305471,1731699046683,-652.13,9.784e-05,2]
[342305472,1731699046692,-606.23948859,9.784e-05,2]
[342305473,1731699046701,-500.0,9.784e-05,2]
[342305474,1731699046710,-500.0,9.784e-05,2]
[342305475,1731699046720,-500.0,9.784e-05,2]
[342305476,1731699046729,-500.0,9.784e-05,2]
[342305477,1731699046738,-197.3571402,9.784e-05,2]
[342305478,1731699046748,-500.0,9.784e-05,2]
[342305479,1731699046757,-500.0,9.784e-05,2]
[342305480,1731699046766,-211.22253202,9.784e-05,2]
[342305481,1731699046774,-887.05,9.784e-05,2]
[342305482,1731699046783,-500.0,9.784e-05,2]
[342305483,1731699046792,-500.0,9.784e-05,2]
[342305484,1731699046801,-500.0,9.784e-05,2]
[342305485,1731699046812,-500.0,9.784e-05,2]
[342305486,1731699046821,-500.0,9.784e-05,2]
[342305487,1731699046830,-500.0,9.784e-05,2]
[342305488,1731699046839,-500.0,9.784e-05,2]
[342305489,1731699046849,-500.0,9.784e-05,2]
[342305490,1731699046858,-500.0,9.784e-05,2]
[342305491,1731699046868,-500.0,9.784e-05,2]
[342305492,1731699046877,-500.0,9.784e-05,2]
[342305493,1731699046887,-1026.42,9.784e-05,2]
[342305494,1731699046899,-1650.18,9.784e-05,2]
[342305495,1731699046908,-500.0,9.784e-05,2]
[342305496,1731699046917,-1174.65,9.784e-05,2]
[342305497,1731699046926,-500.0,9.784e-05,2]
[342305498,1731699046935,-500.0,9.784e-05,2]
[342305499,1731699046944,-500.0,9.784e-05,2]
[342305500,1731699046954,-500.0,9.784e-05,2]
[342305501,1731699046964,-500.0,9.784e-05,2]
[342305502,1731699046973,-383.02,9.784e-05,2]
[342305503,1731699046982,-500.0,9.784e-05,2]
[342305504,1731699046991,-500.0,9.784e-05,2]
[342305505,1731699047000,-500.0,9.784e-05,2]
[342305506,1731699047009,-350.00877091,9.784e-05,2]
[342305507,1731699047018,-500.0,9.784e-05,2]
[342305508,1731699047028,-500.0,9.784e-05,2]
[342305509,1731699047037,-500.0,9.784e-05,2]
[342305510,1731699047046,-500.0,9.784e-05,2]
[342305511,1731699047055,-500.0,9.784e-05,2]
[342305512,1731699047064,-500.0,9.784e-05,2]
[342305513,1731699047073,-500.0,9.784e-05,2]
[342305514,1731699047083,-500.0,9.784e-05,2]
[342305515,1731699047092,-859.72,9.784e-05,2]
[342305516,1731699047101,-500.0,9.784e-05,2]
[342305517,1731699047110,-500.0,9.784e-05,2]
[342305518,1731699047119,-567.9,9.784e-05,2]
[342305519,1731699047128,-1860.95,9.784e-05,2]
[342305520,1731699047137,-1860.95,9.784e-05,2]
[342305521,1731699047149,-1449.04,9.784e-05,2]
[342305522,1731699047158,-500.0,9.784e-05,2]
[342305523,1731699047167,-2864.45,9.784e-05,2]
[342305524,1731699047177,-500.0,9.784e-05,2]
[342305525,1731699047186,-500.0,9.784e-05,2]
[342305526,1731699047195,-1000.0,9.784e-05,2]
[342305527,1731699047204,-500.0,9.784e-05,2]
[342305528,1731699047213,-500.0,9.784e-05,2]
[342305529,1731699047223,-500.0,9.784e-05,2]
[342305530,1731699047232,-951.36,9.784e-05,2]
[342305531,1731699047241,-500.0,9.784e-05,2]
[342305532,1731699047251,-500.0,9.784e-05,2]
[342305533,1731699047261,-775.0,9.784e-05,2]
[342305534,1731699047270,-811.68,9.784e-05,2]
[342305535,1731699047280,-500.0,9.784e-05,2]
[342305536,1731699047289,-500.0,9.784e-05,2]
[342305537,1731699047298,-1582.97,9.784e-05,2]
[342305538,1731699047307,-1582.97,9.784e-05,2]
[342305539,1731699047316,-500.0,9.784e-05,2]
[342305540,1731699047325,-4198.87,9.784e-05,2]
[342305541,1731699047334,-500.0,9.784e-05,2]
[342305542,1731699047343,-500.0,9.784e-05,2]
[342305543,1731699047353,-836.02,9.784e-05,2]
[342305544,1731699047362,-668.91,9.784e-05,2]
[342305545,1731699047371,-500.0,9.784e-05,2]
[342305546,1731699047380,-665.29,9.784e-05,2]
[342305547,1731699047389,-500.0,9.784e-05,2]
[342305548,1731699047400,-806.1,9.784e-05,2]
[342305549,1731699047410,-500.0,9.784e-05,2]
[342305550,1731699047421,-500.0,9.784e-05,2]
[342305551,1731699047431,-500.0,9.784e-05,2]
[342305552,1731699047441,-1028.93,9.784e-05,2]
[342305553,1731699047450,-500.0,9.784e-05,2]
[342305554,1731699047459,-500.0,9.784e-05,2]
[342305555,1731699047470,-500.0,9.784e-05,2]
[342305556,1731699047480,-500.0,9.784e-05,2]
[342305557,1731699047489,-500.0,9.784e-05,2]
[342305558,1731699047501,-500.0,9.784e-05,2]
[342305559,1731699047511,-500.0,9.784e-05,2]
[342305560,1731699047520,-500.0,9.784e-05,2]
[342305561,1731699047529,-500.0,9.784e-05,2]
[342305562,1731699047539,-500.0,9.784e-05,2]
[342305563,1731699047548,-716.99,9.784e-05,2]
[342305564,1731699047558,-617.41,9.784e-05,2]
[342305565,1731699047567,-605.51,9.784e-05,2]
[342305566,1731699047576,-605.51,9.784e-05,2]
[342305567,1731699047587,-1221.33,9.784e-05,2]
[342305568,1731699047596,-500.0,9.784e-05,2]
[342305569,1731699047605,-542.19,9.784e-05,2]
[342305570,1731699047615,-719.82,9.784e-05,2]
[342305571,1731699047624,-500.0,9.784e-05,2]
[342305572,1731699047633,-719.82,9.784e-05,2]
[342305573,1731699047642,-832.12,9.784e-05,2]
[342305574,1731699047653,-500.0,9.784e-05,2]
[342305575,1731699047663,-581.88,9.784e-05,2]
[342305576,1731699047672,-500.0,9.784e-05,2]
[342305577,1731699047682,-500.0,9.784e-05,2]
[342305578,1731699047691,-500.0,9.784e-05,2]
[342305579,1731699047700,-500.0,9.784e-05,2]
[342305580,1731699047950,-500.0,9.784e-05,2]
[342305581,1731699047960,-500.0,9.784e-05,2]
[342305582,1731699047969,-1268.65,9.784e-05,2]
[342305583,1731699047978,-1268.65,9.784e-05,2]
[342305584,1731699047987,-500.0,9.784e-05,2]
[342305585,1731699047996,-500.0,9.784e-05,2]
[342305586,1731699048004,-500.0,9.784e-05,2]
[342305587,1731699048013,-500.0,9.784e-05,2]
[342305588,1731699048022,-874.62,9.784e-05,2]
[342305589,1731699048031,-2716.08,9.784e-05,2]
[342305590,1731699048040,-573.91,9.784e-05,2]
[342305591,1731699048049,-2716.08,9.784e-05,2]
[342305592,1731699048058,-750.0,9.784e-05,2]
[342305593,1731699048067,-846.97,9.784e-05,2]
[342305594,1731699048076,-500.0,9.784e-05,2]
[342305595,1731699048085,-796.93,9.784e-05,2]
[342305596,1731699048094,-500.0,9.784e-05,2]
[342305597,1731699048107,-500.0,9.784e-05,2]
[342305598,1731699048116,-549.3,9.784e-05,2]
[342305599,1731699048125,-558.21,9.784e-05,2]
[342305600,1731699048134,-549.3,9.784e-05,2]
[342305601,1731699048143,-887.81,9.784e-05,2]
[342305602,1731699048154,-558.21,9.784e-05,2]
[342305603,1731699048163,-500.0,9.784e-05,2]
[342305604,1731699048172,-498.59264064,9.784e-05,2]
[342305605,1731699048182,-500.0,9.784e-05,2]
[342305606,1731699048191,-500.0,9.784e-05,2]
[342305607,1731699048201,-611.8,9.784e-05,2]
[342305608,1731699048211,-729.16,9.784e-05,2]
[342305609,1731699048221,-729.16,9.784e-05,2]
[342305610,1731699048230,-2874.0,9.784e-05,2]
[342305611,1731699048239,-2874.0,9.784e-05,2]
[342305612,1731699048248,-500.0,9.784e-05,2]
[342305613,1731699048258,-772.1,9.784e-05,2]
[342305614,1731699048267,-945.82,9.784e-05,2]
[342305615,1731699048276,-500.0,9.784e-05,2]
[342305616,1731699048284,-500.0,9.784e-05,2]
[342305617,1731699048293,-500.0,9.784e-05,2]
[342305618,1731699048302,-500.0,9.784e-05,2]
[342305619,1731699048312,-500.0,9.784e-05,2]
[342305620,1731699048321,-500.0,9.784e-05,2]
[342305621,1731699048330,-500.0,9.784e-05,2]
[342305622,1731699048339,-540.55,9.784e-05,2]
[342305623,1731699048348,-540.55,9.784e-05,2]
[342305624,1731699048357,-500.0,9.784e-05,2]
[342305625,1731699048367,-500.0,9.784e-05,2]
[342305626,1731699048376,-500.0,9.784e-05,2]
[342305627,1731699048385,-500.0,9.784e-05,2]
[342305628,1731699048394,-500.0,9.784e-05,2]
[342305629,1731699048407,-971.28,9.784e-05,2]
[342305630,1731699048417,-677.7,9.784e-05,2]
[342305631,1731699048426,-698.92,9.784e-05,2]
[342305632,1731699048436,-971.28,9.784e-05,2]
[342305633,1731699048445,-500.0,9.784e-05,2]
[342305634,1731699048457,-500.0,9.784e-05,2]
[342305635,1731699048466,-512.84,9.784e-05,2]
[342305636,1731699048476,-512.84,9.784e-05,2]
[342305637,1731699048486,-500.0,9.784e-05,2]
[342305638,1731699048497,-500.0,9.784e-05,2]
[342305639,1731699048506,-920.26,9.784e-05,2]
[342305640,1731699048516,-657.03,9.784e-05,2]
[342305641,1731699048526,-500.0,9.784e-05,2]
[342305642,1731699048536,-500.0,9.784e-05,2]
[342305643,1731699048546,-579.02,9.784e-05,2]
[342305644,1731699048557,-500.0,9.784e-05,2]
[342305645,1731699048567,-500.0,9.784e-05,2]
[342305646,1731699048577,-500.0,9.784e-05,2]
[342305647,1731699048587,-500.0,9.784e-05,2]
[342305648,1731699048598,-500.0,9.784e-05,2]
[342305649,1731699048608,-500.0,9.784e-05,2]
[342305650,1731699048618,-500.0,9.784e-05,2]
[342305651,1731699048628,-1330.19,9.784e-05,2]
[342305652,1731699048638,-999.96,9.784e-05,2]
[342305653,1731699048650,-500.0,9.784e-05,2]
[342305654,1731699048660,-500.0,9.784e-05,2]
[342305655,1731699048670,-500.0,9.784e-05,2]
[342305656,1731699048681,-575.6081065,9.784e-05,2]
[342305657,1731699048700,-1965.01062966,9.784e-05,2]
[342305658,1731699048712,-483.36126384,9.784e-05,2]
[342305659,1731699048722,-500.0,9.784e-05,2]
[342305660,1731699048732,-552.4858102,9.784e-05,2]
[342305661,1731699048742,-500.0,9.784e-05,2]
[342305662,1731699048751,-1011.15,9.784e-05,2]
[342305663,1731699048760,-697.68,9.784e-05,2]
[342305664,1731699048770,-500.0,9.784e-05,2]
[342305665,1731699048784,-360.54,9.784e-05,2]
[342305666,1731699048793,-500.0,9.784e-05,2]
[342305667,1731699048803,-286.76798719,9.784e-05,2]
[342305668,1731699048815,-213.23201281,9.784e-05,2]
[342305669,1731699048825,-500.0,9.784e-05,2]
[342305670,1731699048835,-349.72278546,9.784e-05,2]
[342305671,1731699048846,-243.48721454,9.784e-05,2]
[342305672,1731699048856,-636.29,9.784e-05,2]
[342305673,1731699048866,-500.0,9.784e-05,2]
[342305674,1731699048876,-127.3015963,9.784e-05,2]
[342305675,1731699048948,-621.6284037,9.784e-05,2]
[342305676,1731699048959,-1196.9,9.784e-05,2]
[342305677,1731699048969,-1196.9,9.784e-05,2]
[342305678,1731699048979,-500.0,9.784e-05,2]
[342305679,1731699048988,-500.0,9.784e-05,2]
[342305680,1731699048998,-500.0,9.784e-05,2]
[342305681,1731699049008,-500.0,9.784e-05,2]
[342305682,1731699049017,-557.64,9.784e-05,2]
[342305683,1731699049027,-388.36718114,9.784e-05,2]
[342305684,1731699049036,-588.42,9.784e-05,2]
[342305685,1731699049046,-500.0,9.784e-05,2]
[342305686,1731699049055,-500.0,9.784e-05,2]
[342305687,1731699049065,-2671.78,9.784e-05,2]
[342305688,1731699049075,-500.0,9.784e-05,2]
[342305689,1731699049086,-500.0,9.784e-05,2]
[342305690,1731699049095,-500.0,9.784e-05,2]
[342305691,1731699049105,-500.0,9.784e-05,2]
[342305692,1731699049115,-549.33,9.784e-05,2]
[342305693,1731699049124,-500.0,9.784e-05,2]
[342305694,1731699049133,-500.0,9.784e-05,2]
[342305695,1731699049143,-500.0,9.784e-05,2]
[342305696,1731699049156,-500.0,9.784e-05,2]
[342305697,1731699049166,-500.0,9.784e-05,2]
[342305698,1731699049176,-500.0,9.784e-05,2]
[342305699,1731699049186,-500.0,9.784e-05,2]
[342305700,1731699049195,-416.56,9.784e-05,2]
[342305701,1731699049205,-500.0,9.784e-05,2]
[342305702,1731699049214,-500.0,9.784e-05,2]
[342305703,1731699049224,-637.34,9.784e-05,2]
[342305704,1731699049233,-646.5,9.784e-05,2]
[342305705,1731699049243,-500.0,9.784e-05,2]
[342305706,1731699049253,-302.18,9.784e-05,2]
[342305707,1731699049263,-77.49941508,9.784e-05,2]
[342305708,1731699049276,-422.50058492,9.784e-05,2]
[342305709,1731699049285,-500.0,9.784e-05,2]
[342305710,1731699049294,-626.87,9.784e-05,2]
[342305711,1731699049304,-1049.48,9.784e-05,2]
[342305712,1731699049314,-1049.48,9.784e-05,2]
[342305713,1731699049324,-1049.48,9.784e-05,2]
[342305714,1731699049334,-500.0,9.784e-05,2]
[342305715,1731699049343,-574.7,9.784e-05,2]
[342305716,1731699049353,-474.10327751,9.784e-05,2]
[342305717,1731699049366,-25.89672249,9.784e-05,2]
[342305718,1731699049376,-428.30057435,9.784e-05,2]
[342305719,1731699049447,-178.82942565,9.784e-05,2]
[342305720,1731699049458,-500.0,9.784e-05,2]
[342305721,1731699049468,-270.12314975,9.784e-05,2]
[342305722,1731699049601,-229.87685025,9.784e-05,2]
[342305723,1731699049611,-500.0,9.784e-05,2]
[342305724,1731699049621,-500.0,9.784e-05,2]
[342305725,1731699049630,-261.4734061,9.784e-05,2]
[342305726,1731699204023,500.0,0.00024792,120]
[342305727,1731699233282,616.0,0.00025,60]
[342305728,1731699491052,1500.0,8.219e-05,2]
[342305729,1731699503435,1713.08,8.013e-05,2]
[342305730,1731699516260,250.0,8.219e-05,2]
[342305731,1731699595882,250.0,8.219e-05,2]
[342305732,1731699626911,1132.68,8.219e-05,2]
[342305733,1731699628436,250.0,7.959e-05,2]
[342305734,1731699667596,1000.0,8.219e-05,2]
[342305735,1731699815174,2000.0,0.00024862,120]
[342305736,1731699831739,200.0,0.00024862,120]
[342305737,1731699833957,23900.0,8.056e-05,2]
[342305738,1731699849320,6395.96,8.12e-05,2]
[342305739,1731699865402,1051.27,8.219e-05,2]
[342305740,1731699981545,772.63,8.128e-05,2]
[342305741,1731700008286,451.81,8.095e-05,2]
[342305742,1731700095034,195.32,8.078e-05,2]
[342305743,1731700131814,2000.0,8.241e-05,2]
[342305750,1731700206686,7540.674343,8.178e-05,2]
[342305759,1731700231667,-571.882,8.529e-05,2]
[342305760,1731700231676,-166.59858382,8.629e-05,2]
[342305761,1731700231689,-403.1517091,8.629e-05,2]
[342305762,1731700231700,-7776.89948567,8.629e-05,2]
[342305763,1731700231712,-393.3952172,8.629e-05,2]
[342305764,1731700231723,-1078.87281101,8.629e-05,2]
[342305765,1731700231732,-866.3355,8.673e-05,2]
[342305766,1731700231742,-300.0,8.695e-05,2]
[342305767,1731700231751,-150.0,8.74e-05,2]
[342305768,1731700231765,-337.42,8.742e-05,2]
[342305769,1731700231774,-337.42,8.744e-05,2]
[342305770,1731700231784,-337.42,8.746e-05,2]
[342305771,1731700231794,-337.42,8.749e-05,2]
[342305772,1731700231804,-337.42,8.751e-05,2]
[342305773,1731700231815,-337.42,8.753e-05,2]
[342305774,1731700231825,-337.42,8.755e-05,2]
[342305775,1731700231834,-337.42,8.758e-05,2]
[342305776,1731700231846,-337.42,8.76e-05,2]
[342305777,1731700231856,-337.42,8.762e-05,2]
[342305778,1731700231868,-3900.10158083,8.763e-05,2]
[342305779,1731700231880,-621.77146932,8.763e-05,2]
[342305780,1731700231891,-1099.97243844,8.763e-05,2]
[342305781,1731700231903,-5488.61886519,8.763e-05,2]
[342305782,1731700231952,-1080.79234568,8.763e-05,2]
[342305783,1731700231965,-1028.79,8.763e-05,2]
[342305784,1731700231977,-5577.78905509,8.763e-05,2]
[342305785,1731700231988,-337.42,8.765e-05,2]
[342305786,1731700231997,-337.42,8.767e-05,2]
[342305787,1731700232007,-2047.37094591,8.767e-05,2]
[342305788,1731700232018,-625.387,8.767e-05,2]
[342305793,1731700232317,-814.99724662,8.767e-05,2]
[342305794,1731700232334,-431.15035491,8.767e-05,2]
[342305795,1731700232370,-9731.85445256,8.767e-05,2]
[342305796,1731700232380,-337.42,8.769e-05,2]
[342305797,1731700232389,-337.42,8.772e-05,2]
[342305798,1731700232399,-337.42,8.774e-05,2]
[342305799,1731700232409,-337.42,8.776e-05,2]
[342305800,1731700232418,-337.42,8.779e-05,2]
[342305801,1731700232428,-150.0,8.779e-05,2]
[342305802,1731700232438,-337.42,8.781e-05,2]
[342305803,1731700232447,-337.42,8.783e-05,2]
[342305804,1731700232457,-337.42,8.785e-05,2]
[342305805,1731700232470,-176.54,8.791e-05,2]
[342305806,1731700232480,-385.8,8.794e-05,2]
[342305807,1731700232490,-500.0,8.895e-05,2]
[342305808,1731700232499,-500.0,8.895e-05,2]
[342305809,1731700232512,-500.0,8.895e-05,2]
[342305810,1731700232522,-500.0,8.895e-05,2]
[342305811,1731700232531,-500.0,8.895e-05,2]
[342305812,1731700232540,-500.0,8.895e-05,2]
[342305813,1731700232549,-500.0,8.895e-05,2]
[342305814,1731700232559,-500.0,8.895e-05,2]
[342305815,1731700232568,-500.0,8.895e-05,2]
[342305816,1731700232578,-500.0,8.895e-05,2]
[342305817,1731700232587,-31.11894134,8.895e-05,2]
[342305818,1731700232599,-378.25609224,8.895e-05,2]
[342305819,1731700232611,-90.62496642,8.895e-05,2]
[342305820,1731700232620,-406.23803684,8.895e-05,2]
[342305821,1731700232632,-93.76196316,8.895e-05,2]
[342305822,1731700232641,-500.0,8.895e-05,2]
[342305823,1731700232650,-500.0,8.895e-05,2]
[342305824,1731700232659,-156.02675816,8.895e-05,2]
[342305825,1731700232671,-343.97324184,8.895e-05,2]
[342305826,1731700232680,-468.02,8.895e-05,2]
[342305827,1731700232690,-500.0,8.895e-05,2]
[342305828,1731700232700,-500.0,8.895e-05,2]
[342305829,1731700232709,-500.0,8.895e-05,2]
[342305830,1731700232718,-500.0,8.895e-05,2]
[342305831,1731700232728,-374.54155879,8.895e-05,2]
[342305832,1731700232742,-125.45844121,8.895e-05,2]
[342305833,1731700232751,-500.0,8.895e-05,2]
[342305834,1731700232761,-500.0,8.895e-05,2]
[342305835,1731700232774,-500.0,8.895e-05,2]
[342305836,1731700232783,-500.0,8.895e-05,2]
[342305837,1731700232792,-500.0,8.895e-05,2]
[342305838,1731700232801,-500.0,8.895e-05,2]
[342305839,1731700232811,-500.0,8.895e-05,2]
[342305840,1731700232820,-500.0,8.895e-05,2]
[342305841,1731700232829,-360.05,8.895e-05,2]
[342305842,1731700232839,-432.63,9.041e-05,2]
[342305843,1731700232849,-170.42,9.102e-05,2]
[342305844,1731700232861,-150.0,9.178e-05,2]
[342305845,1731700232870,-1000.0,9.247e-05,2]
[342305846,1731700232879,-3652.83793996,9.255e-05,2]
[342305847,1731700232890,-3600.0,9.255e-05,2]
[342305848,1731700232901,-631.231,9.255e-05,2]
[342305849,1731700232932,-1335.27392991,9.255e-05,2]
[342305850,1731700232943,-1313.91218255,9.255e-05,2]
[342305858,1731700237673,-384.37862274,9.255e-05,2]
[342305859,1731700237684,-5812.40572101,9.255e-05,2]
[342305860,1731700237696,-2392.28815827,9.255e-05,2]
[342305861,1731700237791,-907.0,9.255e-05,2]
[342305862,1731700237807,-3629.02,9.255e-05,2]
[342305863,1731700237820,-25075.65244556,9.255e-05,2]
[342305864,1731700237830,-2103.035,9.512e-05,2]
[342305865,1731700237840,-150.0,9.526e-05,2]
[342305866,1731700237850,-150.0,9.545e-05,2]
[342305867,1731700237861,-150.0,9.552e-05,2]
[342305868,1731700237875,-150.0,9.552e-05,2]
[342305869,1731700237885,-150.0,9.558e-05,2]
[342305870,1731700237895,-150.0,9.559e-05,2]
[342305871,1731700237904,-1500.0,9.563e-05,2]
[342305872,1731700237914,-7297.80159321,9.57e-05,2]
[342305873,1731700237927,-2412.9564569,9.57e-05,2]
[342305874,1731700237939,-1819.61196,9.57e-05,2]
[342305875,1731700237951,-159.19738989,9.57e-05,2]
[342305876,1731700237960,-374.63745331,9.583e-05,2]
[342305877,1731700237972,-659.9890639,9.583e-05,2]
[342305878,1731700237983,-1329.91058279,9.583e-05,2]
[342305879,1731700237992,-1901.9361,9.583e-05,2]
[342305880,1731700238002,-1000.0,9.583e-05,2]
[342305881,1731700238011,-150.0,9.585e-05,2]
[342305882,1731700238021,-150.0,9.59e-05,2]
[342305883,1731700238030,-150.0,9.594e-05,2]
[342305884,1731700238040,-150.0,9.596e-05,2]
[342305885,1731700238050,-150.0,9.6e-05,2]
[342305886,1731700238060,-150.0,9.603e-05,2]
[342305887,1731700238070,-1500.0,9.609e-05,2]
[342305888,1731700238079,-150.0,9.61e-05,2]
[342305889,1731700238089,-2397.36535582,9.611e-05,2]
[342305890,1731700238098,-150.0,9.627e-05,2]
[342305891,1731700238108,-150.0,9.632e-05,2]
[342305892,1731700238119,-150.0,9.639e-05,2]
[342305893,1731700238129,-150.0,9.644e-05,2]
[342305894,1731700238139,-150.0,9.647e-05,2]
[342305895,1731700238150,-255.0,9.656e-05,2]
[342305896,1731700238159,-150.0,9.657e-05,2]
[342305897,1731700238169,-150.0,9.666e-05,2]
[342305898,1731700238179,-1384.50262933,9.67e-05,2]
[342305901,1731700238202,-1694.20737067,9.67e-05,2]
[342305903,1731700238211,-299.99,9.67e-05,2]
[342305905,1731700238221,-1638.10262933,9.67e-05,2]
[342305907,1731700238232,-135.77737067,9.67e-05,2]
[342305909,1731700238241,-499.99,9.67e-05,2]
[342305911,1731700238251,-14357.14,9.67e-05,2]
[342305913,1731700238260,-6764.88,9.67e-05,2]
[342305915,1731700238270,-1977.44,9.67e-05,2]
[342305917,1731700238279,-150.0,9.681e-05,2]
[342305919,1731700238288,-1268.12,9.682e-05,2]
[342305921,1731700238298,-543.88,9.683e-05,2]
[342305923,1731700238307,-1144.0,9.683e-05,2]
[342305925,1731700238316,-2716.08,9.683e-05,2]
[342305927,1731700238326,-1363.8,9.683e-05,2]
[342305928,1731700238336,-500.0,9.683e-05,2]
[342305930,1731700238345,-3951.76,9.683e-05,2]
[342305932,1731700238355,-500.0,9.683e-05,2]
[342305934,1731700238366,-500.0,9.683e-05,2]
[342305936,1731700238375,-575.11,9.683e-05,2]
[342305938,1731700238385,-1092.69,9.683e-05,2]
[342305940,1731700238395,-500.0,9.683e-05,2]